Cogmind - Beta 11 @@@ ROGUE MODE // 2022.04.21 @ 01:47:53 Player: youngster Result: Destroyed by Striker with Compact Linear Accelerator Performance ------------- Evolutions (6) 3000 Regions Visited (26) 5200 Robots Destroyed (305) 1525 Value Destroyed (11398) 11398 Prototype IDs (38) 760 Alien Tech Used (1) 200 Bonus (2466) 2466 TOTAL SCORE: 24549 Bonus ------- High Alert Combat Kills 983 Follower Combat Kills 1495 Network Hubs Disabled 400 Met Imprinter 300 Destroyed Z-Imprinter 1000 Met Zhirov 300 Met Warlord at Base 500 MAIN.C Attacked Warlord 500 Warlord Defense Kill 320 Built Enhanced Grunts 300 A7 Reached Mainframe 300 Met R17 at Cetus 500 Friendly Fire -4432 Cogmind --------- Core Integrity 0/1150 Matter 300/300 Energy 100/100 System Corruption 7% Temperature Cool (0) Movement Core (1350) Ox26 Location -4/Warlord Parts ------- > --- POWER (2) -------- (None) > --- PROPULSION (4) --- (None) > --- UTILITY (9) ------ Huge Storage Unit > --- WEAPON (4) ------- (None) > --- INVENTORY (25) --- Vortex Chain Reactor Advanced Coolant Injector Zionite Biocell (600) Zionite Biocell (600) Experimental Sensor Array Advanced Terrain Scanner Experimental Targeting Computer Core Analyzer Improved Transmission Jammer Graphene Brace Improved Focal Shield Transdimensional Reconstructor Heavy Wave Gun Precision Phase Gun Improved Matter Neutralizer BFG-9k Vortex Edition Neutron Missile Launcher Peak State ------------ > --- POWER ------------ Reinforced Fission Core Fusion Reactor > --- PROPULSION ------- Improved Heavy Treads Biometal Heavy Treads > --- UTILITY ---------- Advanced Cooling System Huge Storage Unit Enhanced Optical Array Active Sensor Suite Advanced Targeting Computer Layered Medium Armor Plating Advanced Remote Shield > --- WEAPON ----------- Heavy Wave Gun Improved Matter Neutralizer Compact Mass Driver Shock Maul > --- INVENTORY -------- Vortex Chain Reactor Advanced Coolant Injector Zionite Biocell Zionite Biocell Experimental Sensor Array Advanced Terrain Scanner Core Analyzer Improved Transmission Jammer Improved Medium Armor Plating Centrium Medium Armor Plating Graphene Brace Improved Focal Shield Hacking Drone Bay Transdimensional Reconstructor Heavy Wave Gun Precision Phase Gun Improved Matter Neutralizer BFG-9k Vortex Edition Neutron Missile Launcher [Rating: 155] Favorites ----------- Power Improved Ion Engine Engine Improved Ion Engine Power Core Micro Fission Core Reactor Fusion Reactor Propulsion Light Treads Treads Light Treads Leg Carbon-fiber Leg Wheel Armored Wheel Utility Huge Storage Unit Device Experimental Sensor Array Storage Huge Storage Unit Processor Improved Signal Interpreter Protection Light Armor Plating Weapon Flak Gun Energy Gun Precision Phase Gun Energy Cannon Improved Matter Neutralizer Ballistic Gun Flak Gun Ballistic Cannon Compact Mass Driver Launcher Grenade Launcher Special Weapon Plasma Cutter Impact Weapon Heavy Flail Special Melee Weapon Improved Datajack Build | -11 -10 -10 -10 -9 -8 -7 -7 -7 -7 -7 -6 -6 -6 -6 -6 -6 -5 -5 -5 -5 -5 -5 -4 -4 -4 -4 ------- Run | Scr Mat Min Exi Min Mat Fac Low Low Zio Dee Pro Fac Ext Cet Arc Hub Fac Was Fac Upp Upp Zhi Pro Fac Upp War Slots Evolved 12 | . . . . . 4 2 . . . . . 2 . . . . 2 . . . . . . 2 . . Power 1 | . . . . . . . . . . . . . . . . . . . . . . . . 1 . . Propulsion 2 | . . . . . 1 . . . . . . 1 . . . . . . . . . . . . . . Utility 7 | . . . . . 1 2 . . . . . 1 . . . . 2 . . . . . . 1 . . Weapon 2 | . . . . . 2 . . . . . . . . . . . . . . . . . . . . . Parts Attached 553 | 6 20 4 3 10 29 99 22 12 5 20 26 8 52 13 17 18 39 2 72 15 13 7 5 21 3 12 Power 24 | 1 1 . 1 . 1 4 1 . . 1 1 1 2 . . 2 1 . 2 . . 1 . 3 . 1 Engine 12 | 1 1 . 1 . 1 2 1 . . . 1 1 2 . . 1 . . . . . . . . . . Core 5 | . . . . . . 2 . . . . . . . . . . . . 1 . . . . 1 . 1 Reactor 7 | . . . . . . . . . . 1 . . . . . 1 1 . 1 . . 1 . 2 . . Propulsion 91 | 2 6 . . 7 14 31 4 2 . . 4 3 4 5 3 . 2 . 2 1 . . . 1 . . Treads 50 | 2 3 . . 4 10 11 2 1 . . 2 . 4 2 3 . 2 . 2 1 . . . 1 . . Leg 8 | . . . . . . 7 1 . . . . . . . . . . . . . . . . . . . Wheel 33 | . 3 . . 3 4 13 1 1 . . 2 3 . 3 . . . . . . . . . . . . Hover . | . . . . . . . . . . . . . . . . . . . . . . . . . . . Flight . | . . . . . . . . . . . . . . . . . . . . . . . . . . . Utility 285 | 1 4 1 . 1 5 44 8 8 2 11 12 3 29 3 11 12 30 2 48 10 7 3 3 15 2 10 Device 177 | . . . . . 1 26 6 6 2 5 8 3 18 . 9 7 24 . 33 5 3 . 2 11 2 6 Storage 6 | 1 2 1 . . . . . . . 1 . . . . . . . . . . . 1 . . . . Processor 10 | . . . . . 2 2 . . . 1 . . . . . . 1 . 1 . . . . 2 . 1 Hackware . | . . . . . . . . . . . . . . . . . . . . . . . . . . . Protection 92 | . 2 . . 1 2 16 2 2 . 4 4 . 11 3 2 5 5 2 14 5 4 2 1 2 . 3 Artifact . | . . . . . . . . . . . . . . . . . . . . . . . . . . . Weapon 153 | 2 9 3 2 2 9 20 9 2 3 8 9 1 17 5 3 4 6 . 20 4 6 3 2 2 1 1 Energy Gun 14 | 1 4 . . . . . 2 . . . . . . . . . . . 4 . 1 1 . 1 . . Energy Cannon 18 | . . . . . . . . . . 2 3 . . . . . 3 . 3 2 1 1 1 1 . 1 Ballistic Gun 64 | 1 1 2 1 1 8 12 2 1 1 3 5 . 7 3 1 4 3 . 7 1 . . . . . . Ballistic Cannon 6 | . . . . . . . . . . . . . . . . . . . 2 . 2 1 . . 1 . Launcher 28 | . 4 1 . 1 1 4 1 1 2 2 1 . 3 1 1 . . . 2 1 1 . 1 . . . Special Weapon 1 | . . . . . . . . . . . . . . . . . . . . . 1 . . . . . Impact Weapon 17 | . . . . . . 4 4 . . . . 1 4 1 1 . . . 2 . . . . . . . Slashing Weapon . | . . . . . . . . . . . . . . . . . . . . . . . . . . . Piercing Weapon . | . . . . . . . . . . . . . . . . . . . . . . . . . . . Special Melee Weapon 5 | . . . 1 . . . . . . 1 . . 3 . . . . . . . . . . . . . Unidentified Prototypes 23 | . . . . . 1 . . . . 4 . 1 . 3 . . 2 . 7 . . 3 . . . 2 Corrupted Parts 13 | . . . . . . . . . . 1 4 . . 2 3 3 . . . . . . . . . . System Corruption 78 | . . . . . . . . . . 9 19 . . 8 25 17 . . . . . . . . . . Parts Lost 60 | . . . . . 1 8 1 . . . 5 . 4 . . 5 2 . 22 . . . . . . 12 Power 5 | . . . . . . . 1 . . . . . . . . . . . 2 . . . . . . 2 Propulsion 12 | . . . . . . 3 . . . . 3 . 1 . . . 1 . 2 . . . . . . 2 Utility 23 | . . . . . . 1 . . . . . . 1 . . 2 1 . 12 . . . . . . 6 Weapon 20 | . . . . . 1 4 . . . . 2 . 2 . . 3 . . 6 . . . . . . 2 Highest Loss Streak 12 | . . . . . 1 4 1 . . . 2 . 2 . . 5 2 . 10 . . . . . . 12 To Critical Strikes 1 | . . . . . . . . . . . 1 . . . . . . . . . . . . . . . Average Slot Usage (%) 89 | . 98 100 100 100 96 99 98 99 85 97 95 94 92 89 85 85 88 88 83 76 75 58 76 77 78 76 Engine 5 | . 14 14 14 14 9 3 6 7 7 3 4 6 6 6 6 5 . . . . . . . . . . Core 1 | . . . . . . 3 . . . . . . . . . . . . 1 5 5 2 . 1 . . Reactor 1 | . . . . . . . . . . 3 2 . . . . . 5 5 2 . . 2 5 8 10 9 Treads 12 | . 21 14 14 14 18 15 15 15 15 15 11 6 11 6 6 6 9 11 10 11 11 11 11 10 10 9 Wheel 5 | . 6 14 14 13 8 5 6 6 7 7 6 14 7 9 6 6 1 . . . . . . . . . Device 8 | . . . . . . 7 6 6 7 5 6 13 7 . 11 9 15 8 17 21 12 11 16 14 15 14 Storage 7 | . 14 14 14 14 9 7 7 7 7 7 7 6 6 6 6 6 5 5 5 5 5 5 5 5 5 5 Processor 14 | . . . . . 8 19 23 23 23 23 23 20 20 20 20 15 17 17 16 5 5 5 5 10 10 9 Protection 4 | . 12 14 14 14 8 2 . . . . . . 4 13 1 6 6 13 3 . 9 11 5 4 5 4 Energy Gun 2 | . 13 3 . . . . 3 7 . . . . . . . . . . 3 6 4 . 5 5 5 4 Energy Cannon 1 | . . . . . . . . . . 2 8 . . . . . 3 5 2 . 3 . 5 5 5 4 Ballistic Gun 14 | . 14 24 23 27 33 23 19 14 6 11 12 20 20 21 21 19 17 17 11 9 1 . . . . . Impact Weapon 4 | . . . . . . 6 4 7 7 7 7 6 2 1 3 6 1 . 1 5 5 5 5 5 5 4 Naked Turns . | . . . . . . . . . . . . . . . . . . . . . . . . . . . Heaviest Build 171 | 14 56 96 96 96 104 112 110 110 105 112 117 111 127 125 124 124 141 141 141 135 128 135 135 157 147 171 Greatest Support 160 | 40 40 16 16 16 60 60 12 60 12 12 40 44 40 80 80 80 160 155 155 155 75 150 150 150 150 150 Greatest Overweight (x) 37 | . 3 5 5 5 6 9 9 9 8 9 9 8 4 4 4 4 4 . . 1 1 1 . 1 . 37 Average Overweight (x) 4 | . 1 4 5 5 5 6 8 7 7 7 8 2 3 2 3 3 . . . . 1 . . . . . Largest Inventory Capacity 25 | 8 20 25 25 25 25 25 25 25 25 25 25 25 25 25 25 25 25 25 25 25 25 25 25 25 25 25 Average Capacity 24 | 6 16 24 25 25 25 25 25 25 25 25 25 25 25 25 25 25 25 25 25 25 25 25 25 25 25 25 Most Carried 25 | 3 20 24 25 25 25 25 25 25 25 25 25 25 25 25 25 25 25 25 25 25 25 25 25 25 25 25 Average Carried 24 | 2 14 22 24 24 24 24 24 24 24 24 24 24 24 24 24 23 24 24 22 24 24 24 24 24 24 24 Final Capacity 25 | 8 20 25 25 25 25 25 25 25 25 25 25 25 25 25 25 25 25 25 25 25 25 25 25 25 25 25 Final Carried 25 | 3 20 24 25 25 25 24 24 23 24 24 25 25 25 25 25 25 25 25 25 25 25 25 25 25 25 23 Class Distribution -------------------- 29% | Assassin 23% | Mutant 22% | Scavenger-Assassin 5% | Scavenger-Mutant 5% | Scavenger-Gunner 4% | Gunner Dominant Class ---------------- Mutant | -10/Materials Mutant | -10/Mines Mutant | -10/Exiles Mutant | -9/Mines Gunner | -8/Materials Mutant | -7/Factory Assassin | -7/Lower Caves Assassin | -7/Lower Caves Mutant | -7/Zion Assassin | -7/Deep Caves Scavenger-Assassin | -6/Proximity Caves Scavenger-Assassin | -6/Factory Scavenger-Assassin | -6/Extension Commander-Mutant | -6/Cetus Scavenger-Gunner | -6/Archives Scavenger-Tank | -6/Hub_04(d) Scavenger-Mutant | -5/Factory Scavenger-Mutant | -5/Waste Scavenger-Mutant | -5/Factory Scavenger-Assassin | -5/Upper Caves Scavenger-Assassin | -5/Upper Caves Scavenger-Assassin | -5/Zhirov Assassin | -4/Proximity Caves Assassin | -4/Factory Assassin | -4/Upper Caves Assassin | -4/Warlord Resources | -11 -10 -10 -10 -9 -8 -7 -7 -7 -7 -7 -6 -6 -6 -6 -6 -6 -5 -5 -5 -5 -5 -5 -4 -4 -4 -4 ----------- Run | Scr Mat Min Exi Min Mat Fac Low Low Zio Dee Pro Fac Ext Cet Arc Hub Fac Was Fac Upp Upp Zhi Pro Fac Upp War Matter Collected 11958 | 152 515 166 . 303 817 1783 463 333 36 279 601 168 984 254 673 524 897 . 1268 396 259 406 19 433 72 157 Remotely 2284 | . . . . . . 352 74 60 . . . . 159 . 192 133 535 . 737 . . . . 42 . . Salvage Created 15032 | . 618 119 . 588 947 2292 232 76 . 301 559 168 1355 263 927 1760 1096 . 1994 372 293 406 50 487 14 115 Parts 718 | . 45 8 . 30 53 100 7 8 . 7 28 8 57 9 49 85 41 . 118 26 7 . 6 22 . 4 Haulers Intercepted 7 | . 2 . . . 2 . . . . . . . . . . 2 . . 1 . . . . . . . Recyclers Shooed 5 | . . . . . . 1 . . . . . . 1 . . 1 . . 2 . . . . . . . Parts Field Recycled . | . . . . . . . . . . . . . . . . . . . . . . . . . . . Retrieved Matter . | . . . . . . . . . . . . . . . . . . . . . . . . . . . Parts Self-Destructed 140 | . . . . . . . 1 9 . . 13 . . . . . . . . 24 4 . 4 . . 85 Prevented 29 | . . . . . . . 6 . . . 10 . . . . . . . . 3 . . . . . 10 Kills | -11 -10 -10 -10 -9 -8 -7 -7 -7 -7 -7 -6 -6 -6 -6 -6 -6 -5 -5 -5 -5 -5 -5 -4 -4 -4 -4 ------- Run | Scr Mat Min Exi Min Mat Fac Low Low Zio Dee Pro Fac Ext Cet Arc Hub Fac Was Fac Upp Upp Zhi Pro Fac Upp War Combat Hostiles Destroyed 207 | . 15 3 . 12 13 33 3 4 . 5 12 . 13 2 1 17 15 . 29 10 5 . 4 9 . 2 Melee 3 | . . . . . . . . . . . . . 1 . . . 1 . 1 . . . . . . . Guns 121 | . 4 1 . 9 13 25 2 1 . 1 2 . 7 . 1 14 13 . 18 6 . . . 4 . . Cannons 12 | . . . . . . . . . . . 1 . . . . . 1 . 3 . . . . 5 . 2 AOE 57 | . 11 2 . 3 . 5 1 3 . 4 7 . 2 1 . 3 . . 3 4 4 . 4 . . . Classes Destroyed 23 | . 8 . . 1 1 3 . . . 2 . 1 2 1 . . 1 . 1 1 1 . . . . . Worker 20 | . 2 . . . . 4 . . . . . . 3 . . 7 2 . 2 . . . . . . . Builder 14 | . 1 . . . . 1 . . . . . . 5 . . 3 . . 4 . . . . . . . Tunneler 2 | . . . . . . . . . . . . . 1 . . . . . 1 . . . . . . . Hauler 7 | . 2 . . . 2 . . . . . . . . . . 2 . . 1 . . . . . . . Recycler 25 | . 1 2 . 3 2 9 . . . . . 1 3 . . 2 . . 1 . . . . 1 . . Mechanic 1 | . . . . . . . . . . . . 1 . . . . . . . . . . . . . . Operator 11 | . 1 . . . 1 . . . . . . . . . 9 . . . . . . . . . . . Watcher 12 | . 2 . . . . 4 . . . . . 1 . 1 . 1 1 . 2 . . . . . . . Swarmer 36 | . 6 3 . 3 . . . 3 . . 4 . . . . . . . 5 4 . . 4 4 . . Grunt 77 | . 9 . . 7 7 17 2 1 . . 3 . 6 . . 7 5 . 7 . 3 . . 3 . . Brawler 7 | . . . . 2 1 . 1 . . . . . . . . 1 1 . . . 1 . . . . . Duelist 1 | . . . . . . . . . . . . . . . . 1 . . . . . . . . . . Protector 1 | . . . . . . . . . . . . . . . . . . . 1 . . . . . . . Sentry 27 | . . . . . 5 6 . . . . 1 . 4 . 1 3 5 . 1 . 1 . . . . . Specialist 7 | . . . . . . . . . . . . . . . . . 2 . 5 . . . . . . . Hunter 13 | . . . . . . 1 . . . . 4 . 2 . . 3 . . 3 . . . . . . . Programmer 24 | . . . . . . 8 . . . . . . . . . 1 2 . 5 5 . . . 2 . 1 Heavy 4 | . . . . . . 1 . . . . . . . . . 1 . . 2 . . . . . . . Behemoth 2 | . . . . . . . . . . . . . 1 . . . . . . . . . . . . 1 Cetus Guard 2 | . . . . . . . . . . . . . . 2 . . . . . . . . . . . . Enhanced Grunt 7 | . . . . . . . . . . 2 . . . . 5 . . . . . . . . . . . Z-Light 1 | . . . . . . . . . . 1 . . . . . . . . . . . . . . . . Decomposer 1 | . . . . . . . . . . . . . . . . . . . . . . . . . 1 . Samaritan 1 | . . . . . . . . . . . . . . . . . . . . . 1 . . . . . Assembled 3 | . . . . . . . . . . 3 . . . . . . . . . . . . . . . . Wasp 1 | . . . . . . . . . . 1 . . . . . . . . . . . . . . . . Butcher 1 | . . . . . . . . . . . . . . 1 . . . . . . . . . . . . Mutant 1 | . . . . . . . . . . . . . . . . . . . . 1 . . . . . . Best Kill Streak 17 | . 5 4 . 5 4 8 3 3 . 3 4 2 10 3 5 15 4 . 17 4 4 . 4 3 . 1 Combat Bots Only 8 | . 3 3 . 5 3 6 3 3 . 3 4 . 5 2 1 8 4 . 8 4 4 . 4 3 . 1 Max Kills in Single Turn 10 | . 3 2 . 3 1 3 1 3 . 1 2 1 3 2 1 10 2 . 3 3 2 . 4 1 1 1 Gunslinging 1 | . . . . . . . . . . . . . . . . 1 . . 1 . . . . . . . Exploded 4 | . 3 2 . 3 . 2 1 3 . 1 2 . 1 1 . 3 . . 2 3 2 . 4 . . . Melee 1 | . . . . . . . . . . . . . 1 . . . 1 . 1 . . . . . . . Uniques/NPCs Destroyed 1 | . . . . . . . . . . 1 . . . . . . . . . . . . . . . . Z-Imprinter (-7/Deep Caves) Combat | -11 -10 -10 -10 -9 -8 -7 -7 -7 -7 -7 -6 -6 -6 -6 -6 -6 -5 -5 -5 -5 -5 -5 -4 -4 -4 -4 -------- Run | Scr Mat Min Exi Min Mat Fac Low Low Zio Dee Pro Fac Ext Cet Arc Hub Fac Was Fac Upp Upp Zhi Pro Fac Upp War Damage Taken 21241 | . 328 20 . 268 574 2850 245 226 . 205 1279 . 1374 198 27 1125 950 . 7392 337 . . . 685 . 3158 Core 2506 | . 48 6 . 49 62 236 . 32 . 24 78 . 88 58 27 173 90 . 342 36 . . . 41 . 1116 Absorbed by Shields 943 | . . . . . . 117 . . . . . . 142 37 . 169 175 . 97 9 . . . 155 . 42 Reduced by Siege Mode 529 | . . . . . . . . . . . . . . . . 58 20 . 387 30 . . . 34 . . Redirected to Shielding 178 | . . . . . . . . . . . . . . 45 . . 133 . . . . . . . . . Regen/Repaired (Parts) 845 | . 90 . . . . 31 . . 724 . . . . . . . . . . . . . . . . . Core Remaining (%) 67 | 100 . . . 58 88 . . . . . 47 . . . . 59 . . . . . . 53 . . . Volleys Fired 631 | . 32 7 . 29 44 90 9 5 . 33 30 . 37 11 40 36 46 22 81 21 9 . 8 29 . 12 Largest 4 | . 2 2 . 2 4 4 4 3 . 2 3 . 4 3 4 3 4 1 4 3 3 . 2 3 . 3 Hottest 273 | . 63 46 . 46 92 107 151 126 . 90 187 . 112 81 116 105 195 90 267 210 273 . 207 267 . 267 Shots Fired 1510 | . 56 12 . 57 161 241 22 18 . 37 46 . 100 18 126 109 106 22 209 56 13 . 18 57 1 25 Gun 1230 | . 50 10 . 56 159 229 17 17 . 7 16 . 88 10 117 109 78 . 167 54 3 . 8 29 1 5 Cannon 190 | . . . . . . . . . . 16 22 . . . . . 28 22 41 . 4 . 9 28 . 20 Launcher 90 | . 6 2 . 1 2 12 5 1 . 14 8 . 12 8 9 . . . 1 2 6 . 1 . . . Special . | . . . . . . . . . . . . . . . . . . . . . . . . . . . Kinetic 1121 | . 26 10 . 56 159 229 11 14 . 7 16 . 88 10 117 109 78 . 141 25 1 . 1 11 . 12 Thermal 248 | . . . . . . . 6 3 . 3 8 . . . . . 28 22 67 29 6 . 16 46 1 13 Explosive 51 | . 6 2 . 1 2 5 . 1 . 14 8 . 3 . . . . . . 2 6 . 1 . . . Electromagnetic 90 | . 24 . . . . 7 5 . . 13 14 . 9 8 9 . . . 1 . . . . . . . Robot Hit Streak 48 | . 7 6 . 17 15 19 5 9 . 15 9 . 12 4 13 42 16 . 48 26 33 . . 9 . 7 Robot Miss Streak 7 | . 1 1 . 2 4 7 2 3 . 4 6 . 4 2 2 4 1 . 4 2 . . . 2 . 2 Penetration Max 2 | . . . . . . . . . . . . . 1 . . 1 1 . 2 . . . . 1 . . Secondary Targets 20 | . . . . 2 1 2 1 . . . . . 1 . . 2 1 . 8 2 . . . . . . Max Gunslinging Chain 1 | . . . . 1 1 1 1 . . . . . 1 . . 1 1 . 1 1 . . . . . . Autonomous 7 | . . . . . . . . . . . . . . . . . . . 7 . . . . . . . Shots Hit Robots 1101 | . 35 7 . 38 106 208 14 12 . 21 30 3 132 7 87 82 66 . 156 31 10 9 . 27 1 19 Core Hits 642 | . 31 7 . 21 37 120 10 12 . 24 34 3 81 21 46 60 30 . 63 14 7 1 4 14 . 2 Critical Kills 22 | . . . . . . . . . . . 1 1 3 . 2 3 5 . 5 . 1 1 . . . . Critical Parts Destroyed 35 | . . . . 2 2 . . . . 1 1 . 2 . 1 6 4 . 11 . 2 2 . 1 . . Critical Strikes 64 | . . . . 2 2 . . . . 1 3 1 5 . 3 9 10 . 17 1 3 3 . 3 . 1 Burn 3 | . . . . . . . . . . . . . . . . . . . . 1 . . . 2 . . Meltdown 2 | . . . . . . . . . . . . . . . . . . . 1 . 1 . . . . . Destroy 39 | . . . . 2 2 . . . . . 1 . . . 3 9 10 . 12 . . . . . . . Blast 1 | . . . . . . . . . . . . . . . . . . . . . . . . . . 1 Corrupt 1 | . . . . . . . . . . . 1 . . . . . . . . . . . . . . . Smash 18 | . . . . . . . . . . 1 1 1 5 . . . . . 4 . 2 3 . 1 . . Melee Attacks 180 | . . . . . . 30 3 . 14 3 3 6 65 2 . 7 7 . 16 1 3 9 . 1 1 9 Impact 133 | . . . . . . 30 3 . 14 2 3 6 19 2 . 7 7 . 16 1 3 9 . 1 1 9 Slashing . | . . . . . . . . . . . . . . . . . . . . . . . . . . . Piercing . | . . . . . . . . . . . . . . . . . . . . . . . . . . . Sneak Attacks 73 | . . . . . . 10 . . . 1 . 2 52 . . 2 2 . . . 2 . . 1 1 . Combat Hostiles . | . . . . . . . . . . . . . . . . . . . . . . . . . . . Follow-up Attacks . | . . . . . . . . . . . . . . . . . . . . . . . . . . . Damage Inflicted 37058 | . 1435 333 . 669 1597 5264 439 321 . 920 1687 290 3408 969 2132 4014 2360 . 5297 1362 1108 865 610 1094 138 746 Guns 18981 | . 529 106 . 554 1597 3145 172 191 . 52 205 . 1604 117 1640 2155 1740 . 3877 847 . . . 363 . 87 Cannons 3093 | . . . . . . . . . . 232 408 . . . . . 261 . 837 . 37 . . 659 . 659 Explosions 10263 | . 906 227 . 115 . 1180 204 130 . 574 795 . 864 852 492 1681 61 . 248 515 809 . 610 . . . Melee 4642 | . . . . . . 939 63 . . 62 279 290 940 . . 178 248 . 306 . 262 865 . 72 138 . Ramming 79 | . . . . . . . . . . . . . . . . . 50 . 29 . . . . . . . Kinetic 17669 | . 313 106 . 554 1597 3145 129 148 . 52 205 . 1604 117 1640 2155 1740 . 3166 290 . . . 307 . 401 Thermal 4646 | . 184 . . . . . 43 43 . . 252 . 65 349 . . 322 . 1734 557 37 . . 715 . 345 Explosive 5313 | . 722 227 . 115 . 545 . 130 . 574 653 . 413 . . . . . . 515 809 . 610 . . . Electromagnetic 4709 | . 216 . . . . 635 204 . . 232 298 . 386 503 492 1681 . . 62 . . . . . . . Impact 4642 | . . . . . . 939 63 . . 62 279 290 940 . . 178 248 . 306 . 262 865 . 72 138 . Slashing . | . . . . . . . . . . . . . . . . . . . . . . . . . . . Piercing . | . . . . . . . . . . . . . . . . . . . . . . . . . . . Highest Corruption 28 | . . . . . 1 7 7 7 7 9 28 . 1 9 13 19 3 3 16 19 19 19 19 3 3 7 Average Corruption 9 | . . . . . 1 3 7 7 7 9 11 . 1 3 7 3 2 3 9 17 19 19 19 2 3 2 Corruption Purged 32 | . . . . . . . . . . . . . . . 32 . . . . . . . . . . . Corruption Blocked 8 | . . . . . . 8 . . . . . . . . . . . . . . . . . . . . Effects 596 | . . . . . 8 39 69 47 1 21 78 . 1 6 18 8 13 3 42 92 68 16 49 3 12 2 Message Errors 169 | . . . . . 2 8 16 11 . 8 22 . . 1 7 5 5 1 11 29 24 6 7 1 4 1 Matter Fused 125 | . . . . . 3 4 21 8 . 5 24 . . 2 2 2 3 . 8 14 14 3 8 . 4 . Heat Flow Errors 64 | . . . . . . 6 7 4 . 3 5 . 1 1 2 . 2 . 2 10 13 1 7 . . . Energy Discharges 73 | . . . . . 1 4 8 7 . . 7 . . . 6 . 1 . 10 13 6 1 8 . . 1 Parts Rejected 1 | . . . . . . 1 . . . . . . . . . . . . . . . . . . . . Data Loss (minor) 62 | . . . . . 1 7 9 2 1 2 6 . . 1 1 1 . 2 6 6 5 4 7 1 . . Data Loss (major) 39 | . . . . . . 2 1 6 . 1 7 . . 1 . . . . 1 6 5 1 4 1 3 . Misfires 39 | . . . . . . 4 4 6 . 1 5 . . . . . 2 . . 10 1 . 5 . 1 . Alerts 15 | . . . . . 1 . 3 2 . 1 2 . . . . . . . 2 3 . . 1 . . . Weapon Failures 9 | . . . . . . 3 . 1 . . . . . . . . . . 2 1 . . 2 . . . Overload Shots . | . . . . . . . . . . . . . . . . . . . . . . . . . . . Overflow Damage 2919 | . 120 2 . 22 . 573 27 . . 73 176 . 386 . . 28 153 . 316 57 244 497 32 72 130 11 Projectiles 108 | . . . . . . . . . . . . . . . . . . . 97 . . . . . . 11 Explosions 289 | . 120 2 . 22 . 6 3 . . 11 . . . . . 28 . . . 57 8 . 32 . . . Melee 2522 | . . . . . . 567 24 . . 62 176 . 386 . . . 153 . 219 . 236 497 . 72 130 . Knockbacks 21 | . . . . . . 4 . . . . . . 5 . . 2 1 . 3 . 1 . . 4 . 1 Impact 15 | . . . . . . 4 . . . . . . 4 . . 1 1 . 3 . 1 . . 1 . . Kinetic 4 | . . . . . . . . . . . . . . . . . . . . . . . . 3 . 1 Secondary 2 | . . . . . . . . . . . . . 1 . . 1 . . . . . . . . . . Self-Inflicted Damage 359 | . 85 . . 15 . 105 . . . 18 118 . 18 . . . . . . . . . . . . . Shots 16 | . 2 . . 1 . 5 . . . 1 6 . 1 . . . . . . . . . . . . . Rammed 5 | . . . . . . . . . . . . . . . . . 3 . 2 . . . . . . . Targets Rammed 6 | . . . . . . . . . . . . . . . . . 3 . 3 . . . . . . . Kicked . | . . . . . . . . . . . . . . . . . . . . . . . . . . . Crushed 1 | . . . . . . . . . . . . . . . . . . . 1 . . . . . . . Highest Temperature 368 | . 99 . . 64 270 214 315 270 . 313 332 . 240 79 318 133 182 30 227 264 308 80 187 368 33 186 Average Temperature 72 | . 26 . . 20 76 39 106 110 . 106 113 . 73 18 102 33 38 11 61 70 87 47 77 112 33 63 Received Heat Transfer 4105 | . 111 . . 135 279 678 144 72 . 36 114 . 337 18 . 360 152 . 1452 . . . . 65 . 152 Effects 6 | . . . . . 1 . . . . 1 3 . . . . . . . . 1 . . . . . . Energy Bleed 3 | . . . . . 1 . . . . . 1 . . . . . . . . 1 . . . . . . Interference 3 | . . . . . . . . . . 1 2 . . . . . . . . . . . . . . . Siege Activations 14 | . . . . . . . . . . . . . . . 3 1 3 . 4 1 1 . . 1 . . Total Turns 371 | . . . . . . . . . . . . . . . 102 64 47 . 119 20 4 . . 15 . . Longest Duration 83 | . . . . . . . . . . . . . . . 71 64 25 . 83 20 4 . . 15 . . Robots Corrupted 12 | . . . . . . 3 . . . 2 2 . 2 . 3 . . . . . . . . . . . Combat Hostiles 7 | . . . . . . 3 . . . . 2 . 2 . . . . . . . . . . . . . Parts Fried 59 | . . . . . . 10 . . . 5 4 . 6 1 8 13 2 . 8 . 1 . . 1 . . Impact Corruptions 80 | . . . . . . 17 2 . . 1 6 . 13 . . . 5 . 7 . 8 16 . 2 3 . Robots Melted 3 | . . . . . . . . . . . . . . 1 . . . . 1 . 1 . . . . . Combat Hostiles 2 | . . . . . . . . . . . . . . 1 . . . . . . 1 . . . . . Parts Melted 12 | . . . . . . . . . . . . . . 2 . . . . 5 3 . . . 2 . . Heat Transferred 3815 | . 100 . . . . . 74 74 . . 100 . 200 200 . . . . 1162 666 37 . . 888 . 314 Parts Sabotaged 1 | . . . . . . . . . . . . . . . . . . . 1 . . . . . . . Parts Stolen . | . . . . . . . . . . . . . . . . . . . . . . . . . . . Parts Stripped . | . . . . . . . . . . . . . . . . . . . . . . . . . . . Power Chain Reactions 11 | . 1 . . . . . . . . . 1 . 3 1 . 3 1 . 1 . . . . . . . Missiles Intercepted . | . . . . . . . . . . . . . . . . . . . . . . . . . . . Alert | -11 -10 -10 -10 -9 -8 -7 -7 -7 -7 -7 -6 -6 -6 -6 -6 -6 -5 -5 -5 -5 -5 -5 -4 -4 -4 -4 ------- Run | Scr Mat Min Exi Min Mat Fac Low Low Zio Dee Pro Fac Ext Cet Arc Hub Fac Was Fac Upp Upp Zhi Pro Fac Upp War Peak Influence 1118 | . 380 200 . 125 287 773 . . . . . 102 569 771 552 1118 753 279 549 . . . . 459 . . Initial 450 | . . 89 . . 39 42 . . . . . . 49 318 308 2 450 263 195 . . . . . . . Average 229 | . 204 40 . 38 103 193 . . . . . 64 168 596 250 589 596 273 386 . . . . 93 . . Maximum Alert Level 4 | . 1 1 . . 1 3 . . . . . . 2 3 2 4 3 1 2 . . . . 2 . . Low Security (%) 55 | 100 39 98 . 100 93 59 . . . . . 100 71 . 34 34 . . 20 . . . . 75 . . Level 1 21 | . 60 1 . . 6 28 . . . . . . 15 10 46 4 . 100 24 . . . . 16 . . Level 2 16 | . . . . . . 7 . . . . . . 13 44 18 . 78 . 55 . . . . 8 . . Level 3 5 | . . . . . . 4 . . . . . . . 44 . 59 21 . . . . . . . . . Level 4 . | . . . . . . . . . . . . . . . . . . . . . . . . . . . Level 5 . | . . . . . . . . . . . . . . . . . . . . . . . . . . . High Security . | . . . . . . . . . . . . . . . . . . . . . . . . . . . Max Security . | . . . . . . . . . . . . . . . . . . . . . . . . . . . Squads Dispatched 41 | . 4 . . . 3 10 . . . . . 2 1 . . 4 8 . 7 . . . . 2 . . Investigation 7 | . 3 . . . 1 . . . . . . 1 . . . . 1 . . . . . . 1 . . Extermination 14 | . . . . . . 6 . . . . . 1 . . . 1 2 . 3 . . . . 1 . . Reinforcement 16 | . 1 . . . 1 2 . . . . . . 1 . . 3 4 . 4 . . . . . . . Assault 3 | . . . . . . 2 . . . . . . . . . . 1 . . . . . . . . . Garrison 1 | . . . . . 1 . . . . . . . . . . . . . . . . . . . . . Intercept . | . . . . . . . . . . . . . . . . . . . . . . . . . . . Searches Triggered . | . . . . . . . . . . . . . . . . . . . . . . . . . . . Construction Impeded 4 | . . . . . 1 . . . . . . . 1 . . 1 . . 1 . . . . . . . Haulers Reinforced 2 | . . . . . . . . . . . . . . . . . 1 . 1 . . . . . . . Active Scanning Responses 1 | . . . . . . . . . . . . . . . . . . . . . . . . 1 . . Cargo Convoy Interrupts 2 | . . . . . . 1 . . . . . . . . . . . . 1 . . . . . . . Stealth | -11 -10 -10 -10 -9 -8 -7 -7 -7 -7 -7 -6 -6 -6 -6 -6 -6 -5 -5 -5 -5 -5 -5 -4 -4 -4 -4 --------- Run | Scr Mat Min Exi Min Mat Fac Low Low Zio Dee Pro Fac Ext Cet Arc Hub Fac Was Fac Upp Upp Zhi Pro Fac Upp War Distress Signals 20 | . 1 . . . 4 4 . . . . . . . 2 . 4 1 . 2 . . . . . . 2 Communications Jammed 11 | . . . . . . . . . . . . . . . . 4 . . 7 . . . . . . . Distress Signals 5 | . . . . . . . . . . . . . . . . 4 . . 1 . . . . . . . Times Spotted 359 | . 25 3 . 11 25 48 3 7 . 6 13 1 30 14 17 21 21 6 39 7 2 . 1 12 . 47 Peak Tracking Total 23 | . 4 1 . 3 4 8 3 4 . 3 4 1 6 5 1 10 6 6 11 4 4 . 1 5 . 23 Tactical Retreats 21 | . . . . . 2 2 . 1 . . . . 2 . . 2 1 2 2 . . . 1 3 . 3 Traps | -11 -10 -10 -10 -9 -8 -7 -7 -7 -7 -7 -6 -6 -6 -6 -6 -6 -5 -5 -5 -5 -5 -5 -4 -4 -4 -4 ------- Run | Scr Mat Min Exi Min Mat Fac Low Low Zio Dee Pro Fac Ext Cet Arc Hub Fac Was Fac Upp Upp Zhi Pro Fac Upp War Traps Triggered 12 | . 1 . . . 1 2 . . . . . . 3 . . 3 1 . . . . . . 1 . . Indirectly 5 | . . . . . . . . . . . . . 2 . . 3 . . . . . . . . . . Trap Hack Attempts . | . . . . . . . . . . . . . . . . . . . . . . . . . . . Triggered . | . . . . . . . . . . . . . . . . . . . . . . . . . . . Disarmed . | . . . . . . . . . . . . . . . . . . . . . . . . . . . Reprogrammed . | . . . . . . . . . . . . . . . . . . . . . . . . . . . Reused . | . . . . . . . . . . . . . . . . . . . . . . . . . . . Traps Extracted . | . . . . . . . . . . . . . . . . . . . . . . . . . . . Installed . | . . . . . . . . . . . . . . . . . . . . . . . . . . . Triggered 16 | . . . . . . 2 . . . . . . . . . 1 . . . 2 . . . . . 11 Exploded 2 | . . . . . . . . 2 . . . . . . . . . . . . . . . . . . Machines | -11 -10 -10 -10 -9 -8 -7 -7 -7 -7 -7 -6 -6 -6 -6 -6 -6 -5 -5 -5 -5 -5 -5 -4 -4 -4 -4 ---------- Run | Scr Mat Min Exi Min Mat Fac Low Low Zio Dee Pro Fac Ext Cet Arc Hub Fac Was Fac Upp Upp Zhi Pro Fac Upp War Machines Disabled 37 | . 5 . . . . 2 . . . 2 . . 2 . 2 16 3 . 5 . . . . . . . Max in Single Turn 10 | . 1 . . . . 1 . . . . . . . . 1 10 1 . 3 . . . . . . . Garrison Access 3 | . . . . . 1 1 . . . . . . . . . 1 . . . . . . . . . . Network Hub 2 | . . . . . . . . . . . . . . . . 2 . . . . . . . . . . Machines Sabotaged . | . . . . . . . . . . . . . . . . . . . . . . . . . . . Garrisons Compromised 1 | . . . . . . 1 . . . . . . . . . . . . . . . . . . . . Overloaded Fab Kills . | . . . . . . . . . . . . . . . . . . . . . . . . . . . Hacking | -11 -10 -10 -10 -9 -8 -7 -7 -7 -7 -7 -6 -6 -6 -6 -6 -6 -5 -5 -5 -5 -5 -5 -4 -4 -4 -4 --------- Run | Scr Mat Min Exi Min Mat Fac Low Low Zio Dee Pro Fac Ext Cet Arc Hub Fac Was Fac Upp Upp Zhi Pro Fac Upp War Machines Accessed 61 | . 10 1 2 . 5 7 1 1 . . . 4 8 1 1 4 6 . 2 . . 4 . 3 . 1 Terminals 33 | . 7 1 . . 2 4 . 1 . . . 3 7 1 . 3 3 . . . . . . 1 . . Fabricators 3 | . . . . . . 1 . . . . . . . . . . 2 . . . . . . . . . Repair Stations 5 | . 1 . . . . 1 . . . . . 1 1 . . . 1 . . . . . . . . . Recycling Units 3 | . 2 . . . 1 . . . . . . . . . . . . . . . . . . . . . Scanalyzers 4 | . . . . . 1 . . . . . . . . . . . . . 2 . . . . 1 . . Garrison Access 4 | . . . . . 1 1 . . . . . . . . . 1 . . . . . . . 1 . . Total Hacks 166 | . 23 3 2 . 12 16 1 1 . . . 11 17 1 13 8 20 . 7 . . 17 . 13 . 1 Successful 101 | . 13 2 2 . 10 7 1 1 . . . 6 7 . 13 5 7 . 4 . . 17 . 5 . 1 Failed 65 | . 10 1 . . 2 9 . . . . . 5 10 1 . 3 13 . 3 . . . . 8 . . Catastrophic 16 | . 3 1 . . . 1 . . . . . . . . . 2 5 . . . . . . 4 . . Database Lockouts . | . . . . . . . . . . . . . . . . . . . . . . . . . . . Manual 50 | . 14 3 . . 5 3 . . 2 . . 6 1 1 . 5 9 . . . . . . 1 . . Terminals 91 | . 18 3 . . 9 10 . 1 . . . 8 15 1 . 7 12 . 1 . . . . 6 . . Fabricators 6 | . . . . . . 1 . . . . . . . . . . 5 . . . . . . . . . Repair Stations 13 | . 3 . . . . 2 . . . . . 3 2 . . . 3 . . . . . . . . . Recycling Units 3 | . 2 . . . 1 . . . . . . . . . . . . . . . . . . . . . Scanalyzers 11 | . . . . . 1 . . . . . . . . . . . . . 6 . . . . 4 . . Garrison Access 8 | . . . . . 1 3 . . . . . . . . . 1 . . . . . . . 3 . . Terminal Hacks 65 | . 6 . 2 . 5 2 1 1 . . . 2 7 . 13 2 2 . 1 . . 17 . 3 . 1 Record 21 | . . . 2 . . . . 1 . . . . . . 13 . . . . . . 5 . . . . Part Schematic 6 | . 2 . . . . . . . . . . . . . . . . . . . . 4 . . . . Robot Analysis 4 | . . . . . . . . . . . . . . . . . . . . . . 4 . . . . Prototype ID Bank 5 | . . . . . . . . . . . . . . . . . 1 . . . . 4 . . . . Open Door 7 | . . . . . . . 1 . . . . 1 4 . . . . . . . . . . . . 1 Branch Access Points 5 | . . . . . 1 1 . . . . . . . . . . 1 . 1 . . . . 1 . . Fabricator Index 1 | . . . . . . . . . . . . . . . . . . . . . . . . 1 . . Alert Level 2 | . 1 . . . 1 . . . . . . . . . . . . . . . . . . . . . Unreport Threat 4 | . 1 . . . 2 . . . . . . . . . . 1 . . . . . . . . . . Locate Traps 7 | . 1 . . . . 1 . . . . . 1 2 . . 1 . . . . . . . 1 . . Hauler Manifests 1 | . 1 . . . . . . . . . . . . . . . . . . . . . . . . . Zone Layout 2 | . . . . . 1 . . . . . . . 1 . . . . . . . . . . . . . Fabricator Hacks 4 | . . . . . . 1 . . . . . . . . . . 3 . . . . . . . . . Network Status 2 | . . . . . . 1 . . . . . . . . . . 1 . . . . . . . . . Build 2 | . . . . . . . . . . . . . . . . . 2 . . . . . . . . . Repair Station Hacks 8 | . 3 . . . . 2 . . . . . 2 . . . . 1 . . . . . . . . . Scan Component 6 | . 2 . . . . 1 . . . . . 2 . . . . 1 . . . . . . . . . Repair 2 | . 1 . . . . 1 . . . . . . . . . . . . . . . . . . . . Recycling Unit Hacks . | . . . . . . . . . . . . . . . . . . . . . . . . . . . Scanalyzer 6 | . . . . . 1 . . . . . . . . . . . . . 3 . . . . 2 . . Insert Component 5 | . . . . . 1 . . . . . . . . . . . . . 2 . . . . 2 . . Analyze 1 | . . . . . . . . . . . . . . . . . . . 1 . . . . . . . Garrison Access Hacks 2 | . . . . . 1 . . . . . . . . . . 1 . . . . . . . . . . Seal Access 2 | . . . . . 1 . . . . . . . . . . 1 . . . . . . . . . . Unauthorized Hacks 16 | . 4 2 . . 3 2 . . . . . 2 . . . 2 1 . . . . . . . . . Terminals 12 | . 2 2 . . 2 2 . . . . . 2 . . . 2 . . . . . . . . . . Track 2 | . 1 1 . . . . . . . . . . . . . . . . . . . . . . . . Botnet 4 | . . 1 . . 1 1 . . . . . 1 . . . . . . . . . . . . . . Detonate 1 | . . . . . . . . . . . . . . . . 1 . . . . . . . . . . Operators 5 | . 1 . . . 1 1 . . . . . 1 . . . 1 . . . . . . . . . . Fabricators 1 | . . . . . . . . . . . . . . . . . 1 . . . . . . . . . Fabnet 1 | . . . . . . . . . . . . . . . . . 1 . . . . . . . . . Repair Stations . | . . . . . . . . . . . . . . . . . . . . . . . . . . . Recycling Units 3 | . 2 . . . 1 . . . . . . . . . . . . . . . . . . . . . Tunnel 3 | . 2 . . . 1 . . . . . . . . . . . . . . . . . . . . . Scanalyzers . | . . . . . . . . . . . . . . . . . . . . . . . . . . . Garrison Access . | . . . . . . . . . . . . . . . . . . . . . . . . . . . Data Cores Recovered 1 | . 1 . . . . . . . . . . . . . . . . . . . . . . . . . Used 1 | . 1 . . . . . . . . . . . . . . . . . . . . . . . . . Hacking Detections 35 | . 7 1 . . 3 6 . . . . . 3 4 1 . 3 4 . . . . . . 3 . . Full Trace Events 3 | . 1 . . . . . . . . . . 1 . . . . 1 . . . . . . . . . Feedback Events . | . . . . . . . . . . . . . . . . . . . . . . . . . . . Feedback Blocked . | . . . . . . . . . . . . . . . . . . . . . . . . . . . Robot Schematics Acquired 4 | . . . . . . . . . 4 . . . . . . . . . . . . . . . . . Robots Built . | . . . . . . . . . . . . . . . . . . . . . . . . . . . Authchips . | . . . . . . . . . . . . . . . . . . . . . . . . . . . Time . | . . . . . . . . . . . . . . . . . . . . . . . . . . . Total Robot Build Rating . | . . . . . . . . . . . . . . . . . . . . . . . . . . . Part Schematics Acquired 22 | . 2 . . . . . . . 15 . . . . . . . . . 1 . . 4 . . . . Parts Built 3 | . . . . . . . . . . . . . . . . . 3 . . . . . . . . . Authchips . | . . . . . . . . . . . . . . . . . . . . . . . . . . . Time 175 | . . . . . . . . . . . . . . . . . 175 . . . . . . . . . Total Part Build Rating 24 | . . . . . . . . . . . . . . . . . 24 . . . . . . . . . Parts Repaired 2 | . 1 . . . . 1 . . . . . . . . . . . . . . . . . . . . Time 58 | . 26 . . . . 32 . . . . . . . . . . . . . . . . . . . . Parts Recycled . | . . . . . . . . . . . . . . . . . . . . . . . . . . . Recycled Matter . | . . . . . . . . . . . . . . . . . . . . . . . . . . . Retrieved Matter . | . . . . . . . . . . . . . . . . . . . . . . . . . . . Retrieved Components . | . . . . . . . . . . . . . . . . . . . . . . . . . . . Parts Scanalyzed 2 | . . . . . . . . . . . . . . . . . . . 1 . . . . 1 . . Part Schematics Acquired 1 | . . . . . . . . . . . . . . . . . . . 1 . . . . . . . Parts Damaged . | . . . . . . . . . . . . . . . . . . . . . . . . . . . Bothacking | -11 -10 -10 -10 -9 -8 -7 -7 -7 -7 -7 -6 -6 -6 -6 -6 -6 -5 -5 -5 -5 -5 -5 -4 -4 -4 -4 ------------ Run | Scr Mat Min Exi Min Mat Fac Low Low Zio Dee Pro Fac Ext Cet Arc Hub Fac Was Fac Upp Upp Zhi Pro Fac Upp War Used RIF Installer . | . . . . . . . . . . . . . . . . . . . . . . . . . . . Robots Hacked 6 | . . . . . . . . . . 1 . . 2 . . . . . . . . . . . . 3 Non-combat 2 | . . . . . . . . . . . . . 2 . . . . . . . . . . . . . Combat 4 | . . . . . . . . . . 1 . . . . . . . . . . . . . . . 3 Robot Hacks Applied 3 | . . . . . . . . . . 1 . . 2 . . . . . . . . . . . . . parse_system 1 | . . . . . . . . . . 1 . . . . . . . . . . . . . . . . no_distress 1 | . . . . . . . . . . . . . 1 . . . . . . . . . . . . . find_recycling 1 | . . . . . . . . . . . . . 1 . . . . . . . . . . . . . Relay Couplers Released 2 | . . . . . . 2 . . . . . . . . . . . . . . . . . . . . Machine Destruction 2 | . . . . . . 2 . . . . . . . . . . . . . . . . . . . . Fabnet Peak Effective % 3 | . . . . . . . . . . . . . . . . . . . . . . . 3 3 3 3 Autooverrided 3 | . . . . . . . . . . . . . . . . . . . . . . . . . . 3 Robots Rewired 19 | . . . . . . . . . . . . . 19 . . . . . . . . . . . . . Allies Hacked . | . . . . . . . . . . . . . . . . . . . . . . . . . . . Hacks Repelled . | . . . . . . . . . . . . . . . . . . . . . . . . . . . Allies | -11 -10 -10 -10 -9 -8 -7 -7 -7 -7 -7 -6 -6 -6 -6 -6 -6 -5 -5 -5 -5 -5 -5 -4 -4 -4 -4 -------- Run | Scr Mat Min Exi Min Mat Fac Low Low Zio Dee Pro Fac Ext Cet Arc Hub Fac Was Fac Upp Upp Zhi Pro Fac Upp War Total Allies 37 | . . . . . . . . . 4 . . . 25 5 . . . . . . . . . . . 3 Largest Group 12 | . . . . . . . . . 4 4 . . 12 11 9 . . . . . . . . . . 1 Highest-Rated Group 700 | . . . . . . . . . 257 257 . . 442 700 700 . . . . . . . . . . 47 Highest-Rated Ally 159 | . . . . . . . . . 96 96 . . 159 159 153 . . . . . . . . . . 47 Total Orders 15 | . . . . . . . . . . . . . 6 . 1 . . . 8 . . . . . . . STAY 2 | . . . . . . . . . . . . . 1 . 1 . . . . . . . . . . . FOLLOW 1 | . . . . . . . . . . . . . 1 . . . . . . . . . . . . . RETURN 12 | . . . . . . . . . . . . . 4 . . . . . 8 . . . . . . . Ally Attacks 278 | . . . . . . . . . . 39 . . 126 86 23 . . . . . . . . . . 4 Total Damage 8273 | . . . . . . . . . . 2333 . . 2910 2013 826 . . . . . . . . . . 191 Kills 44 | . . . . . . . . . . 7 . . 21 12 3 . . . . . . . . . . 1 Allies Corrupted 5 | . . . . . . . . . . 2 . . . . 3 . . . . . . . . . . . Allies Melted 2 | . . . . . . . . . . . . . . . . . . . . . . . . . . 2 Intel | -11 -10 -10 -10 -9 -8 -7 -7 -7 -7 -7 -6 -6 -6 -6 -6 -6 -5 -5 -5 -5 -5 -5 -4 -4 -4 -4 ------- Run | Scr Mat Min Exi Min Mat Fac Low Low Zio Dee Pro Fac Ext Cet Arc Hub Fac Was Fac Upp Upp Zhi Pro Fac Upp War Robot Analysis Total 4 | . . . . . . . . . . . . . . . . . . . . . . 4 . . . . Derelict Logs Recovered 18 | . . 2 . 2 . . 2 1 2 . 2 . . . . . . . . 1 3 . 2 . 1 . Drone Launches 12 | . . . . . . . . . . . . . 4 . . . . . 8 . . . . . . . Drone Recoveries 12 | . . . . . . . . . . . . . 4 . . . . . 8 . . . . . . . Exploration | -11 -10 -10 -10 -9 -8 -7 -7 -7 -7 -7 -6 -6 -6 -6 -6 -6 -5 -5 -5 -5 -5 -5 -4 -4 -4 -4 ------------- Run | Scr Mat Min Exi Min Mat Fac Low Low Zio Dee Pro Fac Ext Cet Arc Hub Fac Was Fac Upp Upp Zhi Pro Fac Upp War Turns Passed 32940 | 63 1213 954 818 1352 1095 2623 2393 1300 2287 1909 2257 288 1565 389 1821 564 1060 163 1259 2045 1731 343 1022 821 441 1164 Spaces Moved 14988 | 36 634 532 464 694 456 985 1095 598 1110 833 963 194 793 195 362 227 473 71 494 843 741 178 651 446 283 637 Core 6 | 5 . . . . . . . . . . . . . . . . . . . . . . . . . 1 Treads 5185 | 31 270 . . . 1 54 . 9 . . 1 . . 44 13 19 400 71 494 843 741 178 651 446 283 636 Legs . | . . . . . . . . . . . . . . . . . . . . . . . . . . . Wheels 9797 | . 364 532 464 694 455 931 1095 589 1110 833 962 194 793 151 349 208 73 . . . . . . . . . Hover . | . . . . . . . . . . . . . . . . . . . . . . . . . . . Flight . | . . . . . . . . . . . . . . . . . . . . . . . . . . . Fastest Speed 50 | 50 145 145 175 175 175 190 210 210 195 195 210 125 125 125 145 160 152 152 152 152 225 152 152 152 152 152 Average Speed 185 | 144 160 173 175 175 188 200 210 210 196 209 213 130 145 157 153 166 165 152 152 221 225 167 152 154 152 169 Slowest Speed 1900 | 160 240 175 175 175 240 320 225 249 210 225 320 210 160 240 240 240 240 152 152 225 225 225 152 232 152 1900 Overloaded Moves . | . . . . . . . . . . . . . . . . . . . . . . . . . . . Propulsion Burnouts . | . . . . . . . . . . . . . . . . . . . . . . . . . . . Robots Hopped . | . . . . . . . . . . . . . . . . . . . . . . . . . . . Cave-ins Triggered 1 | . . . . . . . . . . . . . . . . . . . . . . . . . . 1 Exploration Rate (%) 65 | 3 97 96 87 99 38 35 95 76 85 76 97 8 84 67 89 40 17 83 18 91 89 60 85 12 47 87 Regions Visited 26 Branch Regions 18 Pre-discovered Areas 9 | . 2 . . . 1 . 1 . 2 . . . . . . . . . . . . 3 . . . . Known Exits Taken 19 | . . . . . 1 1 1 1 1 1 1 1 1 1 1 1 . . 1 1 1 1 1 1 1 . Unknown Exits Taken 5 | 1 1 1 1 1 . . . . . . . . . . . . . . . . . . . . . . Scrap Searched 20 | . . 2 . 2 . . 3 2 2 . 2 . . . . . . . . 2 2 . 1 . 2 . Spaces Dug 271 | . 38 8 . 10 14 22 2 . 3 4 18 3 3 1 . 9 22 21 20 53 2 . 4 9 . 5 Terrain Destroyed 1896 | . 56 12 . 10 14 25 2 1 3 35 54 3 26 15 8 1153 59 22 84 85 131 . 56 28 1 13 Melee 52 | . . . . . . 17 2 . 3 1 . 3 3 1 . 4 4 . 8 1 . . . . . 5 Projectile 223 | . . . . . . . . . . 3 5 . 2 . 8 19 55 22 43 9 5 . 15 28 1 8 AOE 1621 | . 56 12 . 10 14 8 . 1 . 31 49 . 21 14 . 1130 . . 33 75 126 . 41 . . . Terrain Rammed . | . . . . . . . . . . . . . . . . . . . . . . . . . . . Walls Destroyed . | . . . . . . . . . . . . . . . . . . . . . . . . . . . Machines Disabled . | . . . . . . . . . . . . . . . . . . . . . . . . . . . Actions | -11 -10 -10 -10 -9 -8 -7 -7 -7 -7 -7 -6 -6 -6 -6 -6 -6 -5 -5 -5 -5 -5 -5 -4 -4 -4 -4 --------- Run | Scr Mat Min Exi Min Mat Fac Low Low Zio Dee Pro Fac Ext Cet Arc Hub Fac Was Fac Upp Upp Zhi Pro Fac Upp War Total 18725 | 44 766 548 469 778 591 1380 1160 623 1195 954 1111 217 1079 268 1543 316 640 99 797 976 788 205 666 528 292 692 Wait 1960 | . 56 . . 28 33 134 23 4 59 38 83 . 104 14 1110 21 55 3 79 88 10 . 1 16 . 1 Move 14962 | 35 633 531 463 693 455 984 1094 597 1109 832 962 193 792 194 361 226 473 70 493 842 740 177 650 445 282 636 Hop . | . . . . . . . . . . . . . . . . . . . . . . . . . . . Pick Up 170 | 3 19 5 2 8 12 14 2 1 3 11 5 1 6 14 5 4 8 1 24 4 4 2 1 4 2 5 Fast Attach 108 | 6 2 . . . 2 5 5 2 1 7 . 6 5 5 8 3 3 . 16 1 4 8 . 11 2 6 Attach 72 | . 1 . . . 4 12 2 . 2 . 5 1 3 2 4 5 4 . 20 1 . . . 2 . 4 Detach 32 | . 1 . . . . 3 . . 2 . 1 4 1 1 2 1 1 . 12 . 1 . . 1 . 1 Swap 374 | . 17 4 3 10 23 82 15 10 2 13 21 1 44 6 5 10 32 2 36 13 9 . 5 8 1 2 Drop 215 | . 5 1 1 10 18 20 7 4 3 17 1 5 14 19 8 3 8 1 17 5 8 9 1 11 4 15 Fire 631 | . 32 7 . 29 44 90 9 5 . 33 30 . 37 11 40 36 46 22 81 21 9 . 8 29 . 12 Melee 180 | . . . . . . 30 3 . 14 3 3 6 65 2 . 7 7 . 16 1 3 9 . 1 1 9 Ram . | . . . . . . . . . . . . . . . . . . . . . . . . . . . Kick . | . . . . . . . . . . . . . . . . . . . . . . . . . . . Crush 6 | . . . . . . . . . . . . . . . . . 3 . 3 . . . . . . . Escape Stasis 15 | . . . . . . 6 . . . . . . 8 . . . . . . . . . . . . 1 Rewire . | . . . . . . . . . . . . . . . . . . . . . . . . . . . Trap . | . . . . . . . . . . . . . . . . . . . . . . . . . . . Miscellaneous . | . . . . . . . . . . . . . . . . . . . . . . . . . . . Route ------- -11/Scrapyard -10/Materials (discovered 5 exits: [*Mat x3] / *Min x2) -10/Mines (discovered 3 exits: [*Mat x2] / *Exi) -10/Exiles (discovered 2 exits: [*Min x2]) -9/Mines (discovered 2 exits: *Mat x2) -8/Materials (discovered 2 exits: *Fac x2) -7/Factory (discovered 3 exits: *Fac / *Low x2) -7/Lower Caves -7/Lower Caves (discovered 2 exits: *Fac / *Zio) -7/Zion (discovered 2 exits: *Dee / [*Pro]) -7/Deep Caves -6/Proximity Caves -6/Factory (discovered 3 exits: Fac / Low / *Ext) -6/Extension (discovered 2 exits: *Fac / *Cet) -6/Cetus (discovered 2 exits: *Fac / *Arc) -6/Archives (discovered 3 exits: *Fac / *Hub x2) -6/Hub_04(d) -5/Factory (discovered 4 exits: *Fac x2 / Upp x2) -5/Waste -5/Factory (discovered 2 exits: *Upp x2) -5/Upper Caves -5/Upper Caves (discovered 2 exits: *Fac / *Zhi) -5/Zhirov -4/Proximity Caves -4/Factory (discovered 3 exits: *Res / *Upp x2) -4/Upper Caves -4/Warlord History --------- Turn | Location | Event 5 | -11/Scrapyard | Discovered new exit (range 16) 64 | -11/Scrapyard | Entered Materials 310 | -10/Materials | Build established: Mutant 407 | -10/Materials | Discovered new exit (range 15) 664 | -10/Materials | Repaired Lgt. Treads? 715 | -10/Materials | Discovered new exit (range 12) 847 | -10/Materials | Discovered new exit (range 5) 976 | -10/Materials | Discovered new exit (range 10) 1086 | -10/Materials | Discovered new exit (range 16) 1277 | -10/Materials | Entered Mines 1316 | -10/Mines | Learned 2 Materials zone layouts 1628 | -10/Mines | Discovered new exit (range 5) 1638 | -10/Mines | Learned location of 1 exit from Materials 1709 | -10/Mines | Discovered new exit (range 8) 1872 | -10/Mines | Found a damaged Exp. Sensor Array with a note attached 1875 | -10/Mines | Found Prototype Device 1904 | -10/Mines | Deemed a non-threat by the Exiles lab entrance 2224 | -10/Mines | Discovered new exit (range 5) 2231 | -10/Mines | Entered Exiles 2231 | -10/Exiles | Found Exiles lab abandoned 2817 | -10/Exiles | Discovered new exit (range 14) 3028 | -10/Exiles | Discovered new exit (range 14) 3049 | -10/Exiles | Entered Mines 3104 | -9/Mines | A weapon hastily lodged in a ceiling crevice suddenly fell to the ground 3347 | -9/Mines | Discovered new exit (range 12) 3491 | -9/Mines | Learned Materials emergency access door positions 4137 | -9/Mines | Learned Materials emergency access door positions 4144 | -9/Mines | Discovered new exit (range 11) 4401 | -9/Mines | Entered Materials 4401 | -8/Materials | Evolved 4 slots: Propulsion x1, Utility x1, Weapon x2 4402 | -8/Materials | Identified exit to Factory 4782 | -8/Materials | Build established: Gunner 4972 | -8/Materials | Garrison activated, responded to threat 5249 | -8/Materials | Identified Exp. Sensor Array 5496 | -8/Materials | Entered Factory 5496 | -7/Factory | Evolved 2 slots: Utility x2 5902 | -7/Factory | Discovered new exit (range 7) 5929 | -7/Factory | Identified exit to Factory 6702 | -7/Factory | Identified exit to Lower Caves 6836 | -7/Factory | Cargo convoy interrupted 6966 | -7/Factory | Lost 4 parts (1n1u2w) 7396 | -7/Factory | Repaired Arm. Wheel 7896 | -7/Factory | First assault squad dispatched 8119 | -7/Factory | Entered Lower Caves 8519 | -7/Lower Caves | Learned location of Zion (-7) 8639 | -7/Lower Caves | Build established: Mutant 9005 | -7/Lower Caves | Build established: Assassin 9457 | -7/Lower Caves | Learned Factory emergency access door positions 10124 | -7/Lower Caves | Discovered new exit (range 6) 10133 | -7/Lower Caves | Identified exit to Lower Caves 10512 | -7/Lower Caves | Entered another Lower Caves area 10528 | -7/Lower Caves | Encountered a Warlord checkpoint 10529 | -7/Lower Caves | Learned 8 Factory zone layouts 10661 | -7/Lower Caves | Discovered exit to Factory (range 8) 11674 | -7/Lower Caves | Discovered new exit (range 7) 11809 | -7/Lower Caves | Identified exit to Zion 11812 | -7/Lower Caves | Entered Zion 11880 | -7/Zion | System corruption cleaned by Quarantine Array 12038 | -7/Zion | Given the Hacking Drone Bay 12038 | -7/Zion | Found Prototype Device 12138 | -7/Zion | Learned Factory terminal intel 12156 | -7/Zion | Discovered new exit (range 16) 12158 | -7/Zion | Identified Hacking Drone Bay 12345 | -7/Zion | Build established: Mutant 12624 | -7/Zion | Discovered new exit (range 5) 12626 | -7/Zion | Saw the warning signs outside the Deep Caves entrance 12763 | -7/Zion | Learned 4 Factory zone layouts 12813 | -7/Zion | Visited the Megawrench Repair Shop 13278 | -7/Zion | Given A8's code to call for help 13357 | -7/Zion | Gained Derelict followers 13789 | -7/Zion | Megawrench repaired 10 parts 14014 | -7/Zion | Enhanced Grunt warped into view, answering call for help 14021 | -7/Zion | Enhanced Grunt warped into view, answering call for help 14077 | -7/Zion | Build established: Assassin 14084 | -7/Zion | Identified exit to Deep Caves 14099 | -7/Zion | Entered Deep Caves 14099 | -7/Deep Caves | Accompanied by 4 allies 14487 | -7/Deep Caves | Found Surveybot 24 Chip 14490 | -7/Deep Caves | Found Surveybot 24 Scanner 14640 | -7/Deep Caves | Z-Facility disabled 14659 | -7/Deep Caves | Attacked by Z-Imprinter 14677 | -7/Deep Caves | Destroyed Z-Imprinter 14714 | -7/Deep Caves | Found Prototype Protection 14714 | -7/Deep Caves | Identified Zio. Weapon Casing 15505 | -7/Deep Caves | Discovered new exit (range 11) 15807 | -7/Deep Caves | Identified exit to Proximity Caves 15908 | -7/Deep Caves | Spotted as-64605 16008 | -7/Deep Caves | Entered Proximity Caves 16682 | -6/Proximity Caves | Attracted the attention of an 0b10 checkpoint 16692 | -6/Proximity Caves | System corruption reached 10% 16707 | -6/Proximity Caves | Core integrity fell below 50% 16896 | -6/Proximity Caves | Build established: Scavenger-Assassin 17170 | -6/Proximity Caves | Spotted B-75 Beast 17853 | -6/Proximity Caves | Discovered exit to Factory (range 9) 17880 | -6/Proximity Caves | Learned Factory non-interactive machine intel 17885 | -6/Proximity Caves | Learned location of 1 exit from Factory 18137 | -6/Proximity Caves | Build established: Assassin 18265 | -6/Proximity Caves | Entered Factory 18265 | -6/Factory | Evolved 2 slots: Propulsion x1, Utility x1 18266 | -6/Factory | Identified exit to Factory 18267 | -6/Factory | Identified exit to Lower Caves 18269 | -6/Factory | Loaded intel: 242 non-interactive machine locations 18270 | -6/Factory | Loaded intel: 28 terminal locations 18543 | -6/Factory | Build established: Scavenger-Assassin 18543 | -6/Factory | Discovered new exit (range 10) 18552 | -6/Factory | Identified exit to Extension 18553 | -6/Factory | Entered Extension 19019 | -6/Extension | Rescued a captive Derelict 19028 | -6/Extension | Rescued a captive Derelict 19040 | -6/Extension | Rescued a captive Derelict 19462 | -6/Extension | Spotted B-75 Beast 19478 | -6/Extension | Disrupted transfer network 19481 | -6/Extension | Allies destroyed B-75 Beast 19502 | -6/Extension | Spotted B-75 Beast 19516 | -6/Extension | Destroyed B-75 Beast 19671 | -6/Extension | Rescued A7 20024 | -6/Extension | Rescued a captive Derelict 20078 | -6/Extension | Discovered new exit (range 13) 20084 | -6/Extension | Discovered exit to Factory (range 10) 20094 | -6/Extension | Identified exit to Cetus 20118 | -6/Extension | Entered Cetus 20118 | -6/Cetus | Accompanied by 11 allies (A7) 20123 | -6/Cetus | Acquired a Cetus Manufacturing Module code from A7 20142 | -6/Cetus | Spotted Cetus Guard 20142 | -6/Cetus | Spotted Cetus Guard 20146 | -6/Cetus | Spotted Cetus Guard 20151 | -6/Cetus | Spotted Cetus Guard 20154 | -6/Cetus | Allies destroyed Cetus Guard 20159 | -6/Cetus | Destroyed Cetus Guard 20159 | -6/Cetus | Allies destroyed Cetus Guard 20164 | -6/Cetus | Destroyed Cetus Guard 20221 | -6/Cetus | Started Cetus Manufacturing Module 20246 | -6/Cetus | Manufactured an Enhanced Grunt 20247 | -6/Cetus | Escorted A7 to Cetus Mainframe 20271 | -6/Cetus | Manufactured an Enhanced Grunt 20295 | -6/Cetus | Discovered new exit (range 15) 20296 | -6/Cetus | Manufactured an Enhanced Grunt 20318 | -6/Cetus | Spotted Cetus Guard 20318 | -6/Cetus | Spotted Cetus Guard 20320 | -6/Cetus | Spotted Cetus Guard 20321 | -6/Cetus | Manufactured an Enhanced Grunt 20324 | -6/Cetus | Allies destroyed Cetus Guard 20325 | -6/Cetus | Allies destroyed Cetus Guard 20332 | -6/Cetus | Allies destroyed Cetus Guard 20335 | -6/Cetus | Spotted Cetus Guard 20343 | -6/Cetus | Allies destroyed Cetus Guard 20346 | -6/Cetus | Manufactured an Enhanced Grunt 20349 | -6/Cetus | Discovered exit to Factory (range 16) 20355 | -6/Cetus | Met Revision 17 20502 | -6/Cetus | Identified exit to Archives 20507 | -6/Cetus | Entered Archives 20507 | -6/Archives | Accompanied by 9 allies (A7) 20512 | -6/Archives | Received a hacking code to weaken MAIN.C 20645 | -6/Archives | Discovered exit to Factory (range 16) 20788 | -6/Archives | Discovered new exit (range 16) 20909 | -6/Archives | Discovered new exit (range 15) 21016 | -6/Archives | Unable to access archive contents 21016 | -6/Archives | Unable to access archive contents 21150 | -6/Archives | System corruption reached 10% 21454 | -6/Archives | Build established: Scavenger-Gunner 22326 | -6/Archives | Identified exit to Hub_04(d) 22328 | -6/Archives | Entered Hub_04(d) 22544 | -6/Hub_04(d) | Destroyed 8 combat bots 22548 | -6/Hub_04(d) | Lost 5 parts (2u3w) 22551 | -6/Hub_04(d) | Network Hub disabled 22551 | -6/Hub_04(d) | Network Hub disabled 22883 | -6/Hub_04(d) | Discovered exit to Factory (range 5) 22892 | -6/Hub_04(d) | Entered Factory 22892 | -5/Factory | Evolved 2 slots: Utility x2 23007 | -5/Factory | Build established: Scavenger-Assassin 23293 | -5/Factory | Discovered new exit (range 19) 23389 | -5/Factory | Fabricated Lyr. Heavy Armor Plating? 23487 | -5/Factory | Fabricated Biometal Heavy Treads (x2) 23674 | -5/Factory | Discovered new exit (range 16) 23792 | -5/Factory | First assault squad dispatched 23828 | -5/Factory | Identified exit to Factory 23877 | -5/Factory | Identified exit to Upper Caves 23952 | -5/Factory | Build established: Scavenger-Mutant 23952 | -5/Factory | Sucked down chute 23952 | -5/Factory | Entered Waste 23996 | -5/Waste | Spotted C-40 Crusher 23997 | -5/Waste | Spotted C-40 Crusher 24015 | -5/Waste | Spotted C-40 Crusher 24038 | -5/Waste | Spotted C-40 Crusher 24039 | -5/Waste | Spotted C-40 Crusher 24082 | -5/Waste | Found Prototype Device 24101 | -5/Waste | Discovered new exit (range 10) 24104 | -5/Waste | Spotted C-40 Crusher 24113 | -5/Waste | Identified exit to Factory 24115 | -5/Waste | Entered Factory 24299 | -5/Factory | Identified Exp. Phase Shifter 24679 | -5/Factory | Cargo convoy interrupted 24746 | -5/Factory | System corruption reached 10% 24768 | -5/Factory | Destroyed 8 combat bots 24769 | -5/Factory | Lost 7 parts (3u4w) 24899 | -5/Factory | Lost 10 parts (2p2n4u2w) 25364 | -5/Factory | Found Prototype Device 25364 | -5/Factory | Identified Active Sensor Suite 25374 | -5/Factory | Entered Upper Caves 25381 | -5/Upper Caves | Lost 3 parts (3u) 25669 | -5/Upper Caves | Build established: Scavenger-Assassin 26516 | -5/Upper Caves | Learned Factory stockpile data 27046 | -5/Upper Caves | Discovered new exit (range 5) 27053 | -5/Upper Caves | Identified exit to Upper Caves 27419 | -5/Upper Caves | Entered another Upper Caves area 27458 | -5/Upper Caves | Discovered exit to Factory (range 11) 27930 | -5/Upper Caves | Learned Factory stockpile data 28918 | -5/Upper Caves | Discovered new exit (range 7) 28932 | -5/Upper Caves | Identified exit to Zhirov 29150 | -5/Upper Caves | Entered Zhirov 29150 | -5/Zhirov | Discovered new exit (range 3) 29153 | -5/Zhirov | Identified exit to Proximity Caves 29192 | -5/Zhirov | Met Zhirov 29241 | -5/Zhirov | Learned location of Quarantine (-3) 29241 | -5/Zhirov | Learned location of Testing (-2) 29241 | -5/Zhirov | Learned location of Command (-1) 29250 | -5/Zhirov | Zhirov requested help retrieving the SGEMP Prototype 29273 | -5/Zhirov | Found Alien Artifact 29273 | -5/Zhirov | Identified Integrated Dissipator 29273 | -5/Zhirov | Installed Integrated Dissipator, increased core heat dissipation (+20) 29295 | -5/Zhirov | Found Alien Artifact 29493 | -5/Zhirov | Entered Proximity Caves 29616 | -4/Proximity Caves | Build established: Assassin 30294 | -4/Proximity Caves | Discovered exit to Factory (range 15) 30296 | -4/Proximity Caves | Learned Research terminal intel 30310 | -4/Proximity Caves | Learned 4 Research zone layouts 30515 | -4/Proximity Caves | Entered Factory 30515 | -4/Factory | Evolved 2 slots: Power x1, Utility x1 30516 | -4/Factory | Identified exit to Upper Caves 30847 | -4/Factory | Discovered new exit (range 21) 30880 | -4/Factory | Identified exit to Research 31183 | -4/Factory | Identified Transdimensional Reconstructor 31336 | -4/Factory | Entered Upper Caves 31356 | -4/Upper Caves | Learned Research stockpile data 31677 | -4/Upper Caves | A Derelict revealed a hidden shortcut to "reach the base" 31774 | -4/Upper Caves | Identified exit to Warlord 31777 | -4/Upper Caves | Entered Warlord 31828 | -4/Warlord | System corruption cleaned by Quarantine Array 32417 | -4/Warlord | Visited the Vortex Lab 32430 | -4/Warlord | Warlord's base attacked by MAIN.C 32433 | -4/Warlord | Met EX-DEC 32433 | -4/Warlord | Found Prototype Energy Cannon 32555 | -4/Warlord | Met Warlord 32582 | -4/Warlord | Found Prototype Device 32582 | -4/Warlord | Identified System Purifier 32603 | -4/Warlord | Found Prototype Reactor 32744 | -4/Warlord | P-80 Master assimilated allied 0P-A1R(Y) 32744 | -4/Warlord | Spotted B-90 Cyclops 32747 | -4/Warlord | Spotted Striker 32755 | -4/Warlord | P-80 Master assimilated allied KD-QH0(Y) 32780 | -4/Warlord | Warlord forces counterattacked 32846 | -4/Warlord | Spotted B-90 Cyclops 32847 | -4/Warlord | Spotted Executioner 32853 | -4/Warlord | Spotted Executioner 32860 | -4/Warlord | Destroyed B-90 Cyclops 32862 | -4/Warlord | Spotted Striker 32871 | -4/Warlord | Spotted Executioner 32873 | -4/Warlord | Spotted Striker 32912 | -4/Warlord | Crushed by falling debris 32925 | -4/Warlord | Found Prototype Processor 32930 | -4/Warlord | Spotted Striker 32931 | -4/Warlord | Spotted Striker 32933 | -4/Warlord | Core integrity fell below 50% 32939 | -4/Warlord | Core integrity fell below 20% 32941 | -4/Warlord | Destroyed by Striker with Compact Linear Accelerator Last Messages --------------- 32934_ Slug penetrates G-73 Enforcer. 32934_ Penetrated by Slug. 32934_ Slug penetrates G-73 Enforcer. 32934_ G-73 Enforcer destroyed. 32934_ Slug penetrates L-61 Swordsman. 32934_ Slug penetrates Earth. 32935_ L-61 Swordsman knocked back. 32935_ Enh. Optical Array severed. 32936_ Unknown Device fries itself beyond repair. 32936_ Corrupted Flexi-carbon Leg fries itself beyond repair. 32936_ Unknown Device fries itself beyond repair. 32936_ F9-VOO(b) destroyed. 32936_ Critical hit (Burn: +50). 32937_ Knocked back. 32937_ Penetrated by Slug. 32937_ Slug penetrates Wall. 32940_ Knocked back. 32940_ Penetrated by Slug. 32940_ Slug penetrates Wall. 32940_ Penetrated by Slug. Map ----- +----------------------------------------------------+ | #?????#???#???????????????????????????? | | #??#??????????????????????????????????? | | #?????????????????????????????????????? | | ####??????????????????????????????????? | | #??????????????????????????????????? | | #????????????? ????????????????????? | | [#?????????????? ???????????????????? | | //[#??????????????? ??????????????????? | | ####????#?#???#????# ?????????????????? | | ???????????????????? ??###???????????? | | ????????????????????? ?? ??????##??? | | ???##????????????????? ### ?????? ##? | | ??#""#????????????????? ?????? #? | | ??#""#?????????????????# #????? #? | | ??#""##????????????????# ????? ;## | | ??#""#??????????????????# ##??? # | | ?##""##??????????????????# ##? | | ## "" ####????????????????# ##;[% ;# | | "" !"#############?????# ;; ; ? | | "" *%%"="%=" *[ ;###????# g%#g i# # | | =%%""%%=%]%%%%"%!!% %;######sggg=[ < | | %%%%%%%%%%!=%![%!%% %%%%##;sKg g%% ?? | | %% %=%%%%%!%!][==%][%%*[!] K; * #??? | | %%%%%%%%=!=!=%*%%==%/==%[l=! #### %#??? | | %%[%[%%%%!%==%%]!***[%%=E% %;; ; ; #? | | =% "%%%%%%%[%==[=*= =!]#@ l; ## ##?? | | "" % %=[%!=%" %! % # % ;## #?? | | "" "# ###%## ## ; ;### # #?? | | ###""######## #?###### ; ; # #?? | | ??#""#??????##???????##; ;#; #?? | | ??#""#???????????????? ;;# ##?? | | ??#""##?????????????? ; ; # #??? | | ??#""#?????????????? ### ##??? | | ???""#??????????????# ##?## #???? | | ???????????????????? ; ##???# ;???? | | ???????????????????# ????## #;??? | | ??????????#???????? # l ;#????## # ?? | | ?????????????????? ; #???## #??? | | ####??????????????#? ???# #??? | | !!#??????????????? # ???# #??? | | &&#??????????????? ## ???# #??? | | !!#?????????????? #??#???# #??? | | ####?????????????? ???????## ##??? | | ???????#????????? # ???????? #???? | | ?????????????????### ???????? ##???? | | ??????????????????? ????????####????? | | ????????#??#??????????????????????????? | | ??????????????????????????????????????? | | ??????????????????????????????????????? | | ??#???????????????????????????????????? | +----------------------------------------------------+ Best States ------------- Heat Dissipation 97 Energy Generation 39 Energy Capacity 865 Matter Stores 300 Matter Capacity 300 Sight Range 23 Robot Scan Range 20 Terrain Scan Range 20 Terrain Scan Density 2010 Jamming Range 14 Armor Coverage 1650 Resistance: KI 25 Resistance: TH 10 Resistance: EM 15 Propulsion Shielding 66 Utility Shielding 33 Weapon Shielding 100 Evasion (%) 40 Targeting Accuracy 8 Recoil Reduction 4 Particle Charging 25 Item Schematics ----------------- Huge Storage Unit | -10/Materials | Hacked Med. Storage Unit | -10/Materials | Hacked Lyr. Light Armor Plating | -7/Zion | Archive Proton Cannon | -7/Zion | Archive Lgt. Fission Core | -7/Zion | Archive Plasma Cannon | -7/Zion | Archive Energy Well | -7/Zion | Archive Dynamic Insulation System | -7/Zion | Archive Adv. Shield Generator | -7/Zion | Archive Mak. Hover Unit | -7/Zion | Archive Adv. ECM Suite | -7/Zion | Archive Mak. Salvage Targeting Computer | -7/Zion | Archive Fusion Compressor | -7/Zion | Archive Microactuators | -7/Zion | Archive Drone Bay | -7/Zion | Archive Lightning Gun | -7/Zion | Archive Mak. Trap Scanner | -7/Zion | Archive Centrium Medium Armor Plating | -5/Factory | Scanalyzed Assault Drone Bay | -5/Zhirov | Free Exp. Heat Sink | -5/Zhirov | Free Exp. Optical Array | -5/Zhirov | Free Imp. Arc Thrower | -5/Zhirov | Free Robot Schematics ------------------ A-02 Transporter | -7/Zion | Archive O-24 Administrator | -7/Zion | Archive R-06 Scavenger | -7/Zion | Archive X-82 Rainmaker | -7/Zion | Archive Fabricated ------------ Lyr. Heavy Armor Plating | x1 | -5/Factory | Preloaded Biometal Heavy Treads | x2 | -5/Factory | Preloaded Alien Tech Used ----------------- Integrated Dissipator Achievements -------------- None Challenges ------------ None Game ------ Seed RecoilUtilityBooster Manual? 0 Play Time 05:31:01 Cumulative 281.1 hours Start 2022.04.16 @ 12:05:50 End 2022.04.21 @ 01:47:53 Sessions 37 Manual Loads 0 Difficulty Rogue Special Mode None Game No. 121 Rogue 121 Adventurer 0 Explorer 0 Win Type - Total 7 Types 5/0/0/1/0/0/0/1/0 Lore% 86 Gallery% 89 Achievement% 68 Wizard Run 0 Options --------- ASCII 1 Keyboard 1 Movement Vi Keybinds 0 Fullscreen 2 Font 18/Cog Map View 76x50 Tactical HUD 1 Map Filters NONE Filters NONE Steam 0 RUN: 295dc5d9-409f-41df-a92a-5c4e6c750410